bitfinex/quotes_SOLUSD_20230110
["timestamp","ask_amount","ask_price","bid_price","bid_amount"]
[1673335142435,17.0,15.989,15.981,5.7023369]
[1673335143493,26.45,15.99,15.981,5.7023369]
[1673335146984,17.0,15.989,15.981,5.7023369]
[1673335147179,19.00061681,15.989,15.981,5.7023369]
[1673335147514,20.0,15.998,15.981,5.7023369]
[1673335147722,39.00061681,15.998,15.981,5.7023369]
[1673335147913,65.90061681,15.997,15.981,5.7023369]
[1673335148128,26.57,15.99,15.981,5.7023369]
[1673335148661,17.0,15.989,15.981,5.7023369]
[1673335148868,46.93,15.988,15.981,5.7023369]
[1673335149718,17.0,15.989,15.981,5.7023369]
[1673335149719,63.92,15.989,15.981,5.7023369]
[1673335149919,46.91,15.993,15.981,5.7023369]
[1673335150126,20.0,15.994,15.981,5.7023369]
[1673335150331,26.63,15.99,15.981,5.7023369]
[1673335150543,20.0,15.988,15.981,5.7023369]
[1673335150751,46.93,15.987,15.981,5.7023369]
[1673335151494,46.93,15.988,15.981,5.7023369]
[1673335151701,17.0,15.987,15.981,5.7023369]
[1673335153281,137.8557,16.0,15.982,83.94]
[1673335153496,137.8557,16.0,15.983,20.0]
[1673335153707,137.8557,16.0,15.984,17.0]
[1673335153918,20.0,15.999,15.985,20.0]
[1673335154131,20.0,15.999,15.986,17.0]
[1673335154538,66.89,15.999,15.986,17.0]
[1673335154749,20.0,15.999,15.986,17.0]
[1673335154969,40.0,15.999,15.986,17.0]
[1673335155504,17.0,15.998,15.983,66.94]
[1673335155815,20.0,15.997,15.984,17.0]
[1673335156028,20.0,15.995,15.975,20.0]
[1673335156224,26.48,15.99,15.976,46.96]
[1673335156449,26.48,15.99,15.975,20.0]
[1673335156665,26.48,15.99,15.977,20.0]
[1673335156875,26.48,15.99,15.978,46.96]
[1673335157086,26.48,15.99,15.977,20.0]
[1673335157512,26.48,15.99,15.978,46.96]
[1673335158044,26.48,15.99,15.977,20.0]
[1673335158253,26.48,15.99,15.976,46.96]
[1673335158460,20.0,15.988,15.974,46.97]
[1673335158676,17.0,15.987,15.973,183.8953]
[1673335160661,20.0,15.988,15.973,183.8953]
[1673335161307,19.00061681,15.989,15.973,183.8953]
[1673335161524,17.0,15.988,15.973,183.8953]
[1673335162980,178.983,15.997,15.973,183.8953]
[1673335163175,132.083,15.997,15.977,14.52220439]
[1673335163389,132.083,15.997,15.979,20.0]
[1673335163390,85.90061681,15.996,15.979,20.0]
[1673335163618,85.90061681,15.996,15.981,25.7023369]
[1673335164346,85.90061681,15.996,15.946,418.88832904]
[1673335164347,184.4,15.989,15.946,418.88832904]
[1673335164559,26.57,15.97,15.955,112.4612]
[1673335164774,1.88772364,15.977,15.955,132.4612]
[1673335164983,46.96,15.976,15.961,25.056372]
[1673335165403,19.00061681,15.978,15.962,20.0]
[1673335165613,46.96,15.977,15.962,134.2883]
[1673335165933,31.25386995,16.001,15.962,134.2883]
[1673335165934,26.63,15.99,15.971,20.0]
[1673335166128,26.63,15.99,15.971,46.98]
[1673335166455,20.0,15.988,15.964,20.0]
[1673335166667,46.93,15.987,15.965,46.99]
[1673335166886,26.63,15.98,15.961,25.056372]
[1673335167064,26.57,15.97,15.961,25.056372]
[1673335167278,17.0,15.969,15.961,25.056372]
[1673335167705,46.99,15.968,15.961,25.056372]
[1673335167928,17.0,15.967,15.961,25.056372]
[1673335168333,17.0,15.966,15.961,25.056372]
[1673335168556,46.99,15.965,15.961,25.056372]
[1673335168769,17.0,15.964,15.961,25.056372]
[1673335168978,46.99,15.966,15.961,25.056372]
[1673335169192,20.0,15.968,15.961,25.056372]
[1673335169404,46.96,15.975,15.961,25.056372]
[1673335169717,20.0,15.974,15.961,25.056372]
[1673335170138,46.97,15.973,15.961,25.056372]
[1673335170330,20.0,15.972,15.961,25.056372]
[1673335170535,26.57,15.97,15.961,25.056372]
[1673335170760,20.0,15.969,15.961,25.056372]
[1673335170968,20.0,15.974,15.961,25.056372]
[1673335170969,41.64278297,15.977,15.961,25.056372]
[1673335171180,20.0,15.976,15.963,20.0]
[1673335171388,45.48061681,15.98,15.964,47.0]
[1673335171607,45.48061681,15.98,15.965,37.0]
[1673335171608,26.48,15.98,15.965,37.0]
[1673335171819,26.48,15.98,15.966,46.99]
[1673335172012,26.48,15.98,15.967,37.0]
[1673335172342,20.0,15.979,15.967,37.0]
[1673335172660,40.0,15.979,15.967,17.0]
[1673335172876,20.0,15.979,15.967,17.0]
[1673335173060,20.0,15.978,15.966,17.0]
[1673335173271,20.0,15.979,15.966,17.0]
[1673335173495,20.0,15.979,15.967,20.0]
[1673335173710,20.0,15.979,15.965,46.99]
[1673335173902,20.0,15.979,15.964,40.64495605]
[1673335173903,26.48,15.97,15.964,40.64495605]
[1673335174109,20.0,15.968,15.961,25.056372]
[1673335174956,20.0,15.968,15.955,20.0]
[1673335175578,20.0,15.969,15.955,20.0]
[1673335175797,40.0,15.969,15.955,20.0]
[1673335176010,17.0,15.968,15.955,20.0]
[1673335176435,17.0,15.968,15.954,81.3674341]
[1673335176650,82.99061681,15.968,15.954,81.3674341]
[1673335176851,20.0,15.967,15.954,81.3674341]
[1673335177076,17.0,15.966,15.954,81.3674341]
[1673335177284,133.29,15.96,15.954,81.3674341]
[1673335177497,47.01,15.959,15.954,81.3674341]
[1673335177723,133.29,15.96,15.954,81.3674341]
[1673335177922,19.00061681,15.958,15.954,81.3674341]
[1673335178118,20.0,15.956,15.954,81.3674341]
[1673335178323,20.0,15.956,15.954,15.25639389]
[1673335178558,36.00061681,15.955,15.954,15.25639389]
[1673335178751,83.02061681,15.955,15.954,15.25639389]
[1673335179081,83.02061681,15.955,15.954,7.93759389]
[1673335179390,20.0,15.956,15.954,7.93759389]
[1673335179797,17.0,15.955,15.954,7.93759389]
[1673335180008,39.00061681,15.956,15.954,7.93759389]
[1673335180228,36.00061681,15.955,15.954,7.93759389]
[1673335180655,20.0,15.956,15.954,7.93759389]
[1673335181054,20.0,15.957,15.954,7.93759389]
[1673335181262,20.0,15.959,15.954,7.93759389]
[1673335181598,20.0,15.959,15.921,157.3063309]
[1673335181599,7.93759389,15.954,15.921,157.3063309]
[1673335181909,20.0,15.949,15.935,25.082879]
[1673335182104,67.04,15.949,15.936,19.5]
[1673335182316,20.0,15.949,15.936,19.5]
[1673335182753,26.85,15.95,15.936,19.5]
[1673335183367,17.0,15.949,15.936,19.5]
[1673335183601,47.04,15.948,15.935,45.082879]
[1673335183786,20.0,15.947,15.935,25.082879]
[1673335184000,56.00061681,15.947,15.935,25.082879]
[1673335184206,20.0,15.947,15.935,25.082879]
[1673335184414,19.00061681,15.946,15.935,25.082879]
[1673335184627,20.0,15.948,15.935,25.082879]
[1673335184970,47.04,15.949,15.936,20.0]
[1673335185190,20.0,15.949,15.936,20.0]
[1673335185491,91.10061681,15.95,15.936,20.0]
[1673335185702,25.06,15.95,15.937,17.0]
[1673335187150,25.06,15.95,15.938,20.0]
[1673335187585,25.06,15.95,15.937,17.0]
[1673335187801,19.00061681,15.95,15.936,20.0]
[1673335188119,20.0,15.956,15.938,20.0]
[1673335188332,39.00061681,15.956,15.94,20.0]
[1673335188519,39.00061681,15.956,15.941,42.21]
[1673335189488,17.0,15.955,15.941,42.21]
[1673335189795,19.00061681,15.955,15.939,157.2131]
[1673335189983,19.00061681,15.955,15.94,20.0]
[1673335190212,19.00061681,15.955,15.941,42.99]
[1673335190423,19.00061681,15.955,15.942,20.0]
[1673335190868,47.02,15.957,15.942,20.0]
[1673335191069,39.00061681,15.958,15.944,20.0]
[1673335191392,39.00061681,15.958,15.943,43.52]
[1673335191816,39.00061681,15.958,15.944,111.918]
[1673335192631,17.0,15.957,15.944,111.918]
[1673335192842,39.00061681,15.958,15.944,111.918]
[1673335193175,47.0,15.962,15.944,111.918]
[1673335193363,24.92,15.96,15.945,20.0]
[1673335193783,71.93,15.96,15.945,20.0]
[1673335194313,24.83,15.96,15.939,40.6198783]
[1673335194539,24.83,15.96,15.934,132.894]
[1673335194540,20.0,15.958,15.934,132.894]
[1673335194762,24.91,15.95,15.934,132.894]
[1673335195061,47.04,15.949,15.934,132.894]
[1673335195264,17.0,15.948,15.934,169.544]
[1673335195470,17.0,15.948,15.934,132.894]
[1673335196094,155.8715,15.957,15.935,33.02]
[1673335196317,108.8515,15.957,15.935,33.02]
[1673335196519,108.8515,15.957,15.936,20.0]
[1673335196725,19.00061681,15.956,15.937,36.79]
[1673335196935,47.02,15.955,15.938,20.0]
[1673335197141,47.02,15.955,15.939,20.0]
[1673335197564,47.02,15.956,15.939,20.0]
[1673335197785,20.0,15.955,15.939,20.0]
[1673335198012,47.03,15.954,15.939,20.0]
[1673335198203,17.0,15.953,15.939,20.0]
[1673335198405,25.05,15.95,15.939,20.0]
[1673335198615,17.0,15.949,15.936,132.9369]
[1673335199794,44.05061681,15.95,15.936,132.9369]
[1673335200192,17.0,15.949,15.936,132.9369]
[1673335200738,44.05061681,15.95,15.936,132.9369]
[1673335200926,19.00061681,15.95,15.936,132.9369]
[1673335201136,47.02,15.955,15.936,132.9369]
[1673335201363,37.0,15.954,15.936,132.9369]
[1673335201602,20.0,15.954,15.936,132.9369]
[1673335201922,66.03061681,15.953,15.938,20.0]
[1673335202136,20.0,15.952,15.938,20.0]
[1673335202319,39.00061681,15.952,15.938,20.0]
[1673335202523,47.02,15.955,15.939,20.0]
[1673335202750,47.01,15.959,15.94,17.0]
[1673335203055,20.0,15.958,15.941,50.48]
[1673335203579,39.00061681,15.958,15.941,50.48]
[1673335203789,39.00061681,15.958,15.943,20.0]
[1673335204004,39.00061681,15.958,15.944,147.4836]
[1673335204233,20.0,15.957,15.944,43.434753]
[1673335204538,20.0,15.959,15.944,43.434753]
[1673335205589,19.00061681,15.958,15.944,43.434753]
[1673335206017,20.0,15.959,15.944,43.434753]
[1673335206740,20.0,15.959,15.945,17.0]
[1673335206946,20.0,15.959,15.945,48.01]
[1673335207361,25.04,15.96,15.945,48.01]
[1673335207578,25.04,15.96,15.946,20.0]
[1673335207909,25.04,15.96,15.947,17.0]
[1673335208729,20.0,15.962,15.947,17.0]
[1673335208985,26.67,15.96,15.947,17.0]
[1673335209682,26.67,15.96,15.946,17.0]
[1673335210519,20.0,15.963,15.946,17.0]
[1673335210731,20.0,15.962,15.947,64.17321163]
[1673335210935,20.0,15.962,15.948,55.59]
[1673335211160,20.0,15.962,15.948,99.76321163]
[1673335211366,20.0,15.962,15.948,61.17321163]
[1673335211683,20.0,15.962,15.948,17.0]
[1673335211684,20.0,15.961,15.948,17.0]
[1673335211898,1.92,15.96,15.95,20.0]
[1673335212090,20.0,15.967,15.951,37.98]
[1673335212432,20.0,15.967,15.952,17.0]
[1673335212752,20.0,15.967,15.953,38.21]
[1673335213068,20.0,15.967,15.953,82.38321163]
[1673335213485,20.0,15.967,15.953,38.21]
[1673335214521,20.0,15.967,15.951,39.14]
[1673335214729,20.0,15.967,15.951,56.14]
[1673335214968,17.0,15.966,15.951,56.14]
[1673335215270,1.92,15.965,15.951,56.14]
[1673335215904,20.0,15.967,15.951,56.14]
[1673335216100,17.0,15.966,15.951,56.14]
[1673335217064,17.0,15.966,15.96,17.42558904]
[1673335217257,1.92,15.965,15.96,17.42558904]
[1673335220952,153.77,15.97,15.96,17.42558904]
[1673335220953,78.21386995,15.976,15.961,74.54997683]
[1673335221140,133.92,15.97,15.961,40.54997683]
[1673335221349,20.0,15.969,15.96,17.42558904]
[1673335222404,0.96,15.968,15.96,17.42558904]
[1673335223140,0.96,15.967,15.96,17.42558904]
[1673335223352,20.0,15.969,15.96,17.42558904]
[1673335224095,19.00061681,15.968,15.96,17.42558904]
[1673335224301,46.99,15.967,15.96,17.42558904]
[1673335224723,20.0,15.965,15.96,17.42558904]
[1673335224937,20.0,15.963,15.96,17.42558904]
[1673335225354,1.92,15.962,15.96,17.42558904]
[1673335226295,1.92,15.962,15.96,8.904e-05]
[1673335226507,20.0,15.961,15.96,8.904e-05]
[1673335226830,60.92061681,15.961,15.96,8.904e-05]
[1673335227047,124.93061681,15.961,15.96,8.904e-05]
[1673335227363,77.92061681,15.961,15.96,8.904e-05]
[1673335227886,124.93061681,15.961,15.96,8.904e-05]
[1673335233983,20.0,15.96,15.945,19.00008904]
[1673335234185,65.93,15.959,15.945,19.00008904]
[1673335234396,20.0,15.958,15.945,19.00008904]
[1673335234607,20.0,15.956,15.945,19.00008904]
[1673335234805,18.92,15.955,15.945,19.00008904]
[1673335235013,20.0,15.954,15.943,20.0]
[1673335235236,18.92,15.953,15.943,20.0]
[1673335236385,20.0,15.954,15.943,20.0]
[1673335237128,20.0,15.954,15.943,19.0]
[1673335237756,1.92,15.953,15.943,19.0]
[1673335238400,39.00061681,15.956,15.943,19.0]
[1673335238613,20.0,15.956,15.943,19.0]
[1673335239011,67.01,15.959,15.943,19.0]
[1673335239220,20.0,15.959,15.944,29.45]
[1673335239435,20.0,15.959,15.946,20.0]
[1673335239867,20.0,15.959,15.947,17.0]
[1673335240079,20.0,15.959,15.948,20.0]
[1673335240303,46.76,15.96,15.948,20.0]
[1673335240716,26.76,15.96,15.948,20.0]
[1673335242286,0.96,15.959,15.948,20.0]
[1673335242509,1.92,15.959,15.948,20.0]
[1673335242824,21.92,15.959,15.946,48.45]
[1673335243032,38.92,15.959,15.946,19.0]
[1673335243678,21.92,15.959,15.946,19.0]
[1673335243883,1.92,15.959,15.947,17.0]
[1673335244096,1.92,15.959,15.948,20.0]
[1673335249481,26.76,15.96,15.948,20.0]
[1673335249703,26.76,15.96,15.949,17.0]
[1673335251048,1.92,15.959,15.949,17.0]
[1673335252826,1.7,31.5,15.949,17.0]
[1673335252827,134.16,15.98,15.95,165.07]
[1673335253046,20.0,15.979,15.951,57.0]
[1673335253257,20.0,15.979,15.952,31.28]
[1673335253584,20.0,15.979,15.953,37.0]
[1673335253585,46.96,15.978,15.953,37.0]
[1673335253768,20.0,15.977,15.955,20.0]
[1673335253977,46.96,15.978,15.957,20.0]
[1673335254190,46.96,15.978,15.958,68.27]
[1673335254502,46.95,15.979,15.96,26.53]
[1673335254715,20.0,15.982,15.96,26.53]
[1673335254716,46.95,15.981,15.962,20.0]
[1673335254936,20.0,15.98,15.964,20.0]
[1673335255134,46.95,15.981,15.964,20.0]
[1673335255344,46.94,15.982,15.966,20.0]
[1673335255551,66.93,15.986,15.967,66.02]
[1673335255784,66.93,15.986,15.967,80.13969575]
[1673335256102,66.93,15.986,15.969,20.0]
[1673335256289,66.93,15.988,15.971,20.0]
[1673335256498,46.93,15.988,15.971,20.0]
[1673335256709,20.0,15.986,15.972,31.11969575]
[1673335257675,46.93,15.988,15.972,59.93969575]
[1673335258087,46.93,15.988,15.973,14.11969575]
[1673335258412,20.0,15.986,15.974,17.0]
[1673335258819,20.0,15.986,15.974,31.11969575]
[1673335259033,73.68,15.99,15.974,31.11969575]
[1673335259248,26.76,15.99,15.975,31.11]
[1673335259456,26.76,15.99,15.976,17.0]
[1673335260403,1.92,15.986,15.976,17.0]
[1673335261245,21.92,15.986,15.976,17.0]
[1673335264703,0.96,15.986,15.976,17.0]
[1673335264920,20.0,15.991,15.977,14.11969575]
[1673335265129,20.0,15.986,15.976,45.86]
[1673335265355,20.0,15.986,15.968,112.306]
[1673335265356,66.93,15.986,15.968,220.4123]
[1673335265538,26.6,15.98,15.969,20.0]
[1673335266064,20.0,15.978,15.968,112.306]
[1673335266392,48.88,15.977,15.968,112.306]
[1673335266596,1.92,15.977,15.968,112.306]
[1673335267005,1.92,15.977,15.963,108.1063]
[1673335267552,20.0,15.975,15.963,108.1063]
[1673335267756,1.92,15.974,15.963,108.1063]
[1673335268919,48.89,15.974,15.963,108.1063]
[1673335269121,26.79,15.97,15.963,108.1063]
[1673335269314,1.92,15.969,15.96,113.0506]
[1673335270451,1.92,15.969,15.961,17.0]
[1673335270890,1.92,15.969,15.96,113.0506]
[1673335273198,26.79,15.97,15.961,20.0]
[1673335273509,26.79,15.97,15.962,17.0]
[1673335274442,20.0,15.973,15.962,20.0]
[1673335274655,66.96,15.975,15.963,17.0]
[1673335274875,20.0,15.975,15.963,17.0]
[1673335275823,1.92,15.974,15.963,17.0]
[1673335278960,1.92,15.974,15.961,20.0]
[1673335279172,1.92,15.974,15.96,113.0506]
[1673335279384,48.89,15.974,15.96,113.0506]
[1673335279707,20.0,15.973,15.96,113.0506]
[1673335279903,1.92,15.972,15.96,113.0506]
[1673335281493,1.92,15.972,15.956,142.651]
[1673335281494,20.0,15.969,15.956,142.651]
[1673335281713,1.92,15.968,15.956,113.511]
[1673335283602,1.92,15.968,15.954,29.14]
[1673335283800,18.92,15.968,15.954,29.14]
[1673335284014,18.92,15.968,15.953,164.6191]
[1673335286770,18.92,15.968,15.953,135.4791]
[1673335292427,65.91,15.968,15.953,135.4791]
[1673335292741,20.0,15.967,15.953,135.4791]
[1673335292947,1.92,15.966,15.952,142.2606]
[1673335293152,26.76,15.96,15.948,29.21]
[1673335293362,1.92,15.959,15.947,29.3]
[1673335293574,0.96,15.959,15.947,29.3]
[1673335293785,115.7345,15.966,15.948,20.0]
[1673335294008,1.92,15.965,15.95,20.0]
[1673335294227,1.92,15.965,15.951,29.29]
[1673335294539,21.92,15.965,15.952,17.0]
[1673335294749,154.01,15.97,15.952,17.0]
[1673335294971,200.99,15.97,15.953,20.0]
[1673335295160,200.99,15.97,15.953,49.29]
[1673335295377,20.0,15.967,15.953,20.0]
[1673335295592,20.0,15.967,15.952,114.3291]
[1673335296016,0.96,15.966,15.952,114.3291]
[1673335296333,0.96,15.965,15.952,114.3291]
[1673335297055,20.96,15.965,15.952,114.3291]
[1673335297271,17.96,15.964,15.952,114.3291]
[1673335297477,0.96,15.963,15.952,114.3291]
[1673335297704,0.96,15.962,15.952,114.3291]
[1673335297916,0.96,15.961,15.952,114.3291]
[1673335298123,0.96,15.96,15.952,114.3291]
[1673335298315,0.96,15.959,15.952,114.3291]
[1673335300436,0.96,15.959,15.953,20.0]
[1673335301048,0.96,15.959,15.949,29.24]
[1673335301380,20.96,15.959,15.947,49.25]
[1673335301789,0.96,15.958,15.947,20.0]
[1673335301998,0.96,15.957,15.947,20.0]
[1673335302200,0.96,15.956,15.947,20.0]
[1673335302407,0.96,15.955,15.947,20.0]
[1673335302623,0.96,15.954,15.947,20.0]
[1673335303695,26.71,15.96,15.947,20.0]
[1673335304006,26.71,15.96,15.948,17.0]
[1673335304218,26.71,15.96,15.947,20.0]
[1673335304640,20.0,15.959,15.947,20.0]
[1673335305048,0.96,15.958,15.947,20.0]
[1673335305254,0.96,15.957,15.947,20.0]
[1673335306650,0.96,15.957,15.948,17.0]
[1673335307078,0.96,15.957,15.947,20.0]
[1673335308312,0.96,15.957,15.945,29.25]
[1673335308524,19.96061681,15.957,15.942,149.182]
[1673335308734,20.0,15.956,15.942,119.772]
[1673335308946,0.96,15.955,15.942,119.772]
[1673335309155,17.96,15.955,15.942,119.772]
[1673335309372,0.96,15.954,15.942,119.772]
[1673335309900,39.96061681,15.954,15.939,29.42]
[1673335310231,1.69706272,15.953,15.939,29.42]
[1673335310417,1.92,15.952,15.939,29.42]
[1673335310845,1.69706272,15.951,15.937,29.42]
[1673335311172,0.96,15.95,15.937,29.42]
[1673335311389,1.69706272,15.948,15.937,29.42]
[1673335311571,0.96,15.947,15.937,49.42]
[1673335311988,0.96,15.948,15.937,29.42]
[1673335312306,2.3066504,15.945,15.936,0.31376]
[1673335312513,0.26592385,15.935,15.933,41.0614927]
[1673335313369,20.0,15.934,15.933,9.27e-05]
[1673335313562,0.26592385,15.935,15.933,9.27e-05]
[1673335313777,2.57257425,15.935,15.933,9.27e-05]
[1673335313998,0.26592385,15.935,15.933,9.27e-05]
[1673335314429,2.18592385,15.935,15.933,9.27e-05]
[1673335317038,0.26592385,15.935,15.933,9.27e-05]
[1673335317375,2.18592385,15.935,15.933,9.27e-05]
[1673335317588,1.22592385,15.935,15.933,9.27e-05]
[1673335317806,0.96,15.934,15.933,9.27e-05]
[1673335317991,1.92,15.934,15.933,9.27e-05]
[1673335319774,0.96,15.934,15.933,9.27e-05]
[1673335319985,0.26592385,15.935,15.933,9.27e-05]
[1673335324086,19.00061681,15.934,15.933,9.27e-05]
[1673335324299,22.94866027,15.934,15.933,9.27e-05]
[1673335324511,3.94804346,15.934,15.933,9.27e-05]
[1673335325153,22.94866027,15.934,15.933,9.27e-05]
[1673335325376,22.94866027,15.934,15.929,25.11594]
[1673335325377,0.0599073,15.932,15.929,25.11594]
[1673335325563,20.0599073,15.932,15.929,25.11594]
[1673335325767,67.05061681,15.931,15.929,25.11594]
[1673335325987,40.0,15.93,15.929,25.11594]
[1673335326182,59.96061681,15.93,15.929,25.11594]
[1673335326522,20.0,15.929,15.92,114.4018]
[1673335326723,1.92,15.928,15.92,114.4018]
[1673335326934,1.92,15.928,15.92,139.528236]
[1673335333243,20.0599073,15.932,15.92,139.528236]
[1673335333244,0.0599073,15.932,15.92,139.528236]
[1673335333454,0.0599073,15.932,15.922,20.0]
[1673335333788,0.0599073,15.932,15.922,34.11969575]
[1673335333993,0.0599073,15.932,15.924,20.0]
[1673335334194,0.0599073,15.932,15.925,17.0]
[1673335334399,0.0599073,15.932,15.926,20.0]
[1673335334624,0.0599073,15.932,15.926,34.11969575]
[1673335335457,0.0599073,15.932,15.926,20.0]
[1673335335669,0.0599073,15.932,15.927,14.11969575]
[1673335336094,0.0599073,15.932,15.926,20.0]
[1673335338503,0.26592385,15.935,15.926,34.11969575]
[1673335339345,0.26592385,15.935,15.927,17.0]
[1673335339555,0.26592385,15.935,15.926,14.11969575]
[1673335340850,0.26592385,15.935,15.927,17.0]
[1673335341255,0.26592385,15.935,15.927,31.11969575]
[1673335341481,0.26592385,15.935,15.927,14.11969575]
[1673335342312,0.26592385,15.935,15.925,20.0]
[1673335342743,0.26592385,15.935,15.926,17.0]
[1673335343480,0.26592385,15.935,15.925,34.11969575]
[1673335343696,0.26592385,15.935,15.926,17.0]
[1673335344018,0.26592385,15.935,15.928,20.0]
[1673335344323,0.26592385,15.935,15.928,34.11969575]
[1673335344857,0.26592385,15.935,15.928,20.0]
[1673335346001,0.26592385,15.935,15.928,133.355]
[1673335348512,0.26592385,15.935,15.928,113.355]
[1673335349155,0.26592385,15.935,15.925,20.0]
[1673335349762,0.26592385,15.935,15.925,34.11969575]
[1673335350518,0.26592385,15.935,15.925,14.11969575]
[1673335351125,0.26592385,15.935,15.924,136.1708]
[1673335354405,0.26592385,15.935,15.924,150.29049575]
[1673335355456,0.26592385,15.935,15.925,17.0]
[1673335355667,0.26592385,15.935,15.926,20.0]
[1673335355995,0.26592385,15.935,15.926,34.11969575]
[1673335356913,0.26592385,15.935,15.926,20.0]
[1673335357761,0.26592385,15.935,15.924,136.1708]
[1673335358806,0.26592385,15.935,15.925,78.72915755]
[1673335359023,0.26592385,15.935,15.926,20.0]
[1673335359233,0.26592385,15.935,15.927,17.0]
[1673335359549,0.26592385,15.935,15.928,135.62]
[1673335359761,0.26592385,15.935,15.93,20.0]
[1673335361125,0.26592385,15.935,15.928,149.73969575]
[1673335361348,0.26592385,15.935,15.928,135.62]
[1673335361982,0.26592385,15.935,15.928,149.73969575]
[1673335362167,0.26592385,15.935,15.928,135.62]
[1673335365339,0.26592385,15.935,15.926,14.11969575]
[1673335365552,0.26592385,15.935,15.921,157.3063309]
[1673335365873,20.0,15.933,15.921,157.3063309]
[1673335366070,48.05,15.932,15.921,157.3063309]
[1673335366398,20.96,15.931,15.921,157.3063309]
[1673335366601,20.96,15.93,15.921,157.3063309]
[1673335366829,0.96,15.929,15.922,20.0]
[1673335367042,0.96,15.928,15.922,20.0]
[1673335367248,0.96,15.927,15.922,20.0]
[1673335367567,0.96,15.926,15.922,20.0]
[1673335367776,0.96,15.925,15.922,20.0]
[1673335367968,0.96,15.924,15.921,157.3063309]
[1673335368177,0.96,15.924,15.922,20.0]
[1673335368723,0.96,15.924,15.921,157.3063309]
[1673335369232,0.96,15.925,15.922,20.0]
[1673335369987,0.96,15.925,15.921,157.3063309]
[1673335370297,0.96,15.925,15.922,20.0]
[1673335371855,0.96,15.924,15.922,20.0]
[1673335373664,0.96,15.925,15.921,157.3063309]
[1673335373875,0.96,15.925,15.922,20.0]
[1673335374510,20.0,15.931,15.922,20.0]
[1673335375027,20.0,15.932,15.922,20.0]
[1673335375765,47.08,15.936,15.922,20.0]
[1673335376079,134.15,15.94,15.922,20.0]
[1673335376080,155.9501,15.938,15.924,20.0]
[1673335376298,108.8801,15.938,15.924,20.0]
[1673335377342,108.8801,15.938,15.925,17.0]
[1673335377656,108.8801,15.938,15.926,20.0]
[1673335377863,20.0,15.936,15.926,20.0]
[1673335378085,49.26592385,15.935,15.926,20.0]
[1673335378295,49.26592385,15.935,15.921,157.3063309]
[1673335378502,49.26592385,15.935,15.922,20.0]
[1673335378503,26.88,15.93,15.922,20.0]
[1673335378710,1.92,15.929,15.922,20.0]
[1673335385754,1.92,15.929,15.921,157.3063309]
[1673335386071,1.92,15.929,15.922,20.0]
[1673335387855,20.0,15.931,15.922,20.0]
[1673335388383,20.0,15.933,15.922,20.0]
[1673335388597,20.0,15.931,15.921,157.3063309]